{"text_format":"3","workbook":"xlsx","n_sheets":6,"sheets":["DÖNEM","KREDİ","BÜTÇE","NET AYLIK GİDERLER","DÖNEM GİDERLERİ","KİTAPLAR"],"not_rendered":{"defined_names":21},"read":"whole","date_system":"1900"}

{"sheet":"DÖNEM","index":0,"n_rows":29,"n_cols":9,"rows_kept":29,"merged":[[2,3,2,4]]}
[null,"DERS PROGRAMIM"]
[null,"GÜZ DÖNEMİ"]
[null,null,"BAŞLANGIÇ ZAMANI","ZAMAN ARALIĞI",null,"YIL"]
[null,null,"09:00:00",60,"(Dakika Cinsinden)"]
[null,"SAAT ","PZT","SAL","ÇAR","PER","CUM","CTS","PAZ"]
[null,{"$f":"BaşlangıçZamani+TIME(0,(ROW(A1)-1)*ZamanAralığı,0)","v":"09:00:00"},"Kahvaltı","Kahvaltı","Kahvaltı","Kahvaltı","Kahvaltı"]
[null,{"$f":"BaşlangıçZamani+TIME(0,(ROW(A2)-1)*ZamanAralığı,0)","v":"10:00:00"},"İşletme: Ders Bina B, Oda 256"]
[null,"11:00:00",{"$nulls":3},"Fizik: Laboratuvar \nBina J, Oda 309"]
[null,"12:00:00"]
[null,"13:00:00"]
[null,"14:00:00"]
[null,"15:00:00"]
[null,"16:00:00"]
[null,"17:00:00"]
[null,"18:00:00"]
[null,"19:00:00"]
[null,"20:00:00"]
[null,"21:00:00"]
[null,"22:00:00"]
[null,"23:00:00"]
[null,1]
[null,1.0416666666666665]
[null,1.0833333333333335]
[null,1.125]
[null,1.1666666666666665]
[null,1.2083333333333335]
[null,{"$f":"BaşlangıçZamani+TIME(0,(ROW(A22)-1)*ZamanAralığı,0)","v":1.25}]
[null,{"$f":"BaşlangıçZamani+TIME(0,(ROW(A23)-1)*ZamanAralığı,0)","v":1.2916666666666665}]
[null,{"$f":"BaşlangıçZamani+TIME(0,(ROW(A24)-1)*ZamanAralığı,0)","v":1.3333333333333335}]

{"sheet":"KREDİ","index":1,"n_rows":17,"n_cols":8,"rows_kept":17}
[null,"ÜNİVERSİTE"]
[null,"KREDİ PLANLAYICISI"]
[null,"Derece",{"$f":"Yıl","v":"YIL"}]
[null,"GENEL İLERLEME DURUMU",null,"GENEL İLERLEME DURUMU"]
[null,{"$f":"AVERAGE(Dersler[NOT])","v":3.5},{"$f":"IFERROR(TEXT(AVERAGEIF(Dersler[TAMAMLANAN],\"Evet\",Dersler[NOT]),\"0,00\"),\"0,00\")&\" Güncel Not Ortalaması\"","v":"3,50 Güncel Not Ortalaması"},{"$f":"COUNTIF(Dersler[TAMAMLANAN],\"Evet\")/COUNTA(Dersler[DERS ADI])","v":0.6666666666666666},{"$f":"TEXT(COUNTIF(Dersler[TAMAMLANAN],\"Evet\")/COUNTA(Dersler[DERS ADI]),\"0%\")&\" Tamamlandı\"","v":"67% Tamamlandı"}]
[null,"Not: Aşağıdaki kredi özeti, aşağıdaki Üniversite Dersleri tablosuna yaptığınız girişlerle otomatik olarak doldurulur"]
[null,"GEREKSİNİM","TOPLAM KREDİ","KAZANILAN","ZORUNLU"]
[null,"Akademik Anadal",{"$f":"IF(SUMIF(Dersler[GEREKSİNİM],KREDİ!$B8,Dersler[KREDİ])=0,\"0\",SUMIF(Dersler[GEREKSİNİM],KREDİ!$B8,Dersler[KREDİ]))","v":4},{"$f":"SUMIFS(Dersler[KREDİ],Dersler[GEREKSİNİM],KREDİ!$B8,Dersler[TAMAMLANAN],\"Evet\")","v":4},{"$f":"SUMIF(Dersler[GEREKSİNİM],KREDİ!$B8,Dersler[KREDİ])-SUMIFS(Dersler[KREDİ],Dersler[GEREKSİNİM],KREDİ!$B8,Dersler[TAMAMLANAN],\"Evet\")","v":0}]
[null,"Akademik Yan Dal",{"$f":"IF(SUMIF(Dersler[GEREKSİNİM],KREDİ!$B9,Dersler[KREDİ])=0,\"0\",SUMIF(Dersler[GEREKSİNİM],KREDİ!$B9,Dersler[KREDİ]))","v":3},{"$f":"SUMIFS(Dersler[KREDİ],Dersler[GEREKSİNİM],KREDİ!$B9,Dersler[TAMAMLANAN],\"Evet\")","v":0},{"$f":"SUMIF(Dersler[GEREKSİNİM],KREDİ!$B9,Dersler[KREDİ])-SUMIFS(Dersler[KREDİ],Dersler[GEREKSİNİM],KREDİ!$B9,Dersler[TAMAMLANAN],\"Evet\")","v":3}]
[null,"Seçmeli Ders",{"$f":"IF(SUMIF(Dersler[GEREKSİNİM],KREDİ!$B10,Dersler[KREDİ])=0,\"0\",SUMIF(Dersler[GEREKSİNİM],KREDİ!$B10,Dersler[KREDİ]))","v":2},{"$f":"SUMIFS(Dersler[KREDİ],Dersler[GEREKSİNİM],KREDİ!$B10,Dersler[TAMAMLANAN],\"Evet\")","v":2},{"$f":"SUMIF(Dersler[GEREKSİNİM],KREDİ!$B10,Dersler[KREDİ])-SUMIFS(Dersler[KREDİ],Dersler[GEREKSİNİM],KREDİ!$B10,Dersler[TAMAMLANAN],\"Evet\")","v":0}]
[null,"Genel Çalışma",{"$f":"IF(SUMIF(Dersler[GEREKSİNİM],KREDİ!$B11,Dersler[KREDİ])=0,\"0\",SUMIF(Dersler[GEREKSİNİM],KREDİ!$B11,Dersler[KREDİ]))","v":"0"},{"$f":"SUMIFS(Dersler[KREDİ],Dersler[GEREKSİNİM],KREDİ!$B11,Dersler[TAMAMLANAN],\"Evet\")","v":0},{"$f":"SUMIF(Dersler[GEREKSİNİM],KREDİ!$B11,Dersler[KREDİ])-SUMIFS(Dersler[KREDİ],Dersler[GEREKSİNİM],KREDİ!$B11,Dersler[TAMAMLANAN],\"Evet\")","v":0}]
[null,"Toplam",{"$f":"SUBTOTAL(109,KREDİ!$C$8:$C$11)","v":9},{"$f":"SUBTOTAL(109,KREDİ!$D$8:$D$11)","v":6},{"$f":"SUBTOTAL(109,KREDİ!$E$8:$E$11)","v":3}]
[null,"Dersler"]
[null,"DERS ADI","DERS NO","GEREKSİNİM","KREDİ","TAMAMLANAN","NOT","DÖNEM"]
[null,"Ders 1","Numara","Akademik Anadal",4,"Evet",{"v":4,"d":"4.0"},"Dönem 1"]
[null,"Ders 2","Numara","Akademik Yan Dal",3,"Hayır",null,"Dönem 1"]
[null,"Ders 3","Numara","Seçmeli Ders",2,"Evet",{"v":3,"d":"3.0"},"Dönem 1"]

{"sheet":"BÜTÇE","index":2,"n_rows":15,"n_cols":4,"rows_kept":15}
[null,{"$f":"Üniversite","v":"ÜNİVERSİTE"}]
[null,"BÜTÇE İZLEYİCİSİ"]
[null,"Bütçem",{"$f":"Yıl","v":"YIL"}]
[null,"GELİRİN HARCANAN YÜZDESİ"]
[null,{"$f":"NET_AYLIK_GİDERLER/NET_AYLIK_GELİR","v":{"v":0.7454545454545455,"d":"75%"}}]
[null,{"$f":"B5","v":0.7454545454545455}]
[null,"NET AYLIK GELİR","NET AYLIK GİDERLER","BAKİYE"]
[null,{"$f":"C10","v":{"v":2750,"d":"₺2,750"}},{"$f":"'NET AYLIK GİDERLER'!C4+'DÖNEM GİDERLERİ'!D4","v":{"v":2050,"d":"₺2,050"}},{"$f":"NET_AYLIK_GELİR-NET_AYLIK_GİDERLER","v":{"v":700,"d":"₺700"}}]
[null,"Dönem içindeki aylar",4]
[null,"AYLIK GELİR",{"$f":"SUM(AylıkGelir[TUTAR])","v":{"v":2750,"d":"₺2,750"}}]
[null,"ÖĞE","TUTAR"]
[null,"Sabit gelir",{"v":1500,"d":"₺1,500"}]
[null,"Mali yardım",{"v":500,"d":"₺500"}]
[null,"Krediler",{"v":500,"d":"₺500"}]
[null,"Diğer gelirler",{"v":250,"d":"₺250"}]

{"sheet":"NET AYLIK GİDERLER","index":3,"n_rows":15,"n_cols":3,"rows_kept":15}
[null,{"$f":"Üniversite","v":"ÜNİVERSİTE"}]
[null,"BÜTÇE İZLEYİCİSİ"]
[null,"Aylık Giderler",{"$f":"Yıl","v":"YIL"}]
[null,"AYLIK GİDERLER",{"$f":"SUM(AylıkGiderler[TUTAR])","v":{"v":1675,"d":"₺1,675"}}]
[null,"ÖĞE","TUTAR"]
[null,"Kira",{"v":300,"d":"₺300"}]
[null,"Kamu hizmetleri",{"v":50,"d":"₺50"}]
[null,"Cep telefonu",{"v":75,"d":"₺75"}]
[null,"Market",{"v":250,"d":"₺250"}]
[null,"Araba giderleri",{"v":50,"d":"₺50"}]
[null,"Öğrenci kredileri",{"v":500,"d":"₺500"}]
[null,"Kredi kartları",{"v":275,"d":"₺275"}]
[null,"Sigorta",{"v":125,"d":"₺125"}]
[null,"Eğlence",{"v":50,"d":"₺50"}]
[null,"Çeşitli",{"v":0,"d":"₺0"}]

{"sheet":"DÖNEM GİDERLERİ","index":4,"n_rows":11,"n_cols":4,"rows_kept":11}
[null,{"$f":"Üniversite","v":"ÜNİVERSİTE"}]
[null,"BÜTÇE İZLEYİCİSİ"]
[null,"Dönem Giderleri",{"$f":"Yıl","v":"YIL"}]
[null,"DÖNEM GİDERLERİ (Toplam/Aylık)",{"$f":"SUM(DönemGiderleri[TUTAR])","v":{"v":1500,"d":"₺1,500"}},{"$f":"SUM(DönemGiderleri[AYLIK])","v":{"v":375,"d":"₺375"}}]
[null,"ÖĞE","TUTAR","AYLIK"]
[null,"Okul ücreti",{"v":750,"d":"₺750"},{"$f":"DönemGiderleri[[#This Row],[TUTAR]]/Dönem_içindeki_aylar","v":{"v":187.5,"d":"₺188"}}]
[null,"Laboratuvar ücretleri",{"v":250,"d":"₺250"},{"$f":"DönemGiderleri[[#This Row],[TUTAR]]/Dönem_içindeki_aylar","v":{"v":62.5,"d":"₺63"}}]
[null,"Kitaplar",{"v":500,"d":"₺500"},{"$f":"DönemGiderleri[[#This Row],[TUTAR]]/Dönem_içindeki_aylar","v":{"v":125,"d":"₺125"}}]
[null,"Depozitolar",{"v":0,"d":"₺0"},{"$f":"DönemGiderleri[[#This Row],[TUTAR]]/Dönem_içindeki_aylar","v":{"v":0,"d":"₺0"}}]
[null,"Ulaşım",{"v":0,"d":"₺0"},{"$f":"DönemGiderleri[[#This Row],[TUTAR]]/Dönem_içindeki_aylar","v":{"v":0,"d":"₺0"}}]
[null,"Diğer ücretler",{"v":0,"d":"₺0"},{"$f":"DönemGiderleri[[#This Row],[TUTAR]]/Dönem_içindeki_aylar","v":{"v":0,"d":"₺0"}}]

{"sheet":"KİTAPLAR","index":5,"n_rows":7,"n_cols":7,"rows_kept":7}
[null,{"$f":"Üniversite","v":"ÜNİVERSİTE"}]
[null,"KİTAP İZLEYİCİSİ"]
[null,"Kitap Listesi"]
[null,"AD","YAZAR","DERS","NEREDEN SATIN ALINIR?","ISBN","NOTLAR"]
[null,"Kitap Adı","Yazar","Ders","Konum","Numara"]
[null,"Kitap Adı","Yazar","Ders","Konum","Numara"]
[null,"Kitap Adı","Yazar","Ders","Konum","Numara"]